bitfinex-derivatives/quotes_SOLF0:USTF0_20220108
["timestamp","ask_amount","ask_price","bid_price","bid_amount"]
[1641636046848,27.66479,146.82,146.76,5.62347544]
[1641636047251,27.66479,146.82,146.76,1.62347544]
[1641636047648,27.66479,146.84,146.76,1.62347544]
[1641636047849,27.66479,146.84,146.78,27.66479]
[1641636048249,27.66479,146.84,146.76,7.22247544]
[1641636048650,27.66479,146.84,146.78,14.43959608]
[1641636048850,27.66479,146.84,146.79,4.0]
[1641636049049,27.66479,146.88,146.79,8.378]
[1641636049651,27.66479,146.88,146.8,1.62347544]
[1641636049850,27.66479,146.88,146.8,29.28826544]
[1641636050654,27.66479,146.88,146.81,1.62347544]
[1641636052453,14.43959608,146.9,146.81,1.62347544]
[1641636052854,18.43959608,146.91,146.81,1.62347544]
[1641636053053,14.43959608,146.91,146.83,4.0]
[1641636053255,14.43959608,146.91,146.83,7.589]
[1641636053855,3.19150914,146.91,146.84,29.28826544]
[1641636054755,3.19150914,146.91,146.84,27.66479]
[1641636055655,42.10438608,146.92,146.84,27.66479]
[1641636055858,27.66479,146.92,146.85,1.62290595]
[1641636060361,27.66479,146.92,146.85,10.37790595]
[1641636060562,3.18967933,146.91,146.85,10.37790595]
[1641636061165,31.66479,146.92,146.86,1.62290595]
[1641636061863,27.66479,146.92,146.86,1.62290595]
[1641636062663,3.19008026,146.91,146.82,1.62290595]
[1641636062866,3.19008026,146.91,146.84,4.0]
[1641636063066,3.19008026,146.91,146.86,4.0]
[1641636063263,3.19008026,146.91,146.84,6.408]
[1641636064163,3.19008026,146.91,146.82,1.62290595]
[1641636064864,3.19008026,146.91,146.82,5.62290595]
[1641636065464,3.19008026,146.91,146.84,4.0]
[1641636065665,3.19008026,146.91,146.84,7.99]
[1641636066965,3.19008026,146.91,146.85,1.62290595]
[1641636067566,3.19008026,146.91,146.84,1.62290595]
[1641636068266,3.19008026,146.91,146.85,55.0]
[1641636068468,3.19008026,146.91,146.85,61.655]
[1641636069069,27.66479,146.92,146.86,1.62290595]
[1641636069268,27.66479,146.92,146.87,55.0]
[1641636074177,27.66479,146.92,146.88,55.0]
[1641636074577,27.66479,146.92,146.88,61.468]
[1641636075978,3.19204734,146.91,146.88,61.468]
[1641636076582,3.19204734,146.91,146.88,55.0]
[1641636076780,10.77504734,146.91,146.88,36.5225]
[1641636077384,10.77504734,146.91,146.88,36.0]
[1641636077780,17.63164342,146.9,146.88,36.0]
[1641636077980,27.66479,146.89,146.88,36.0]
[1641636079082,30.85683734,146.89,146.88,36.0]
[1641636079482,39.14883734,146.89,146.81,78.34059608]
[1641636079681,4.0,146.88,146.81,78.34059608]
[1641636079881,4.0,146.86,146.82,14.43959608]
[1641636080082,27.66479,146.83,146.82,14.43959608]
[1641636080280,34.14979,146.83,146.82,14.43959608]
[1641636080482,6.485,146.83,146.82,14.43959608]
[1641636081281,6.485,146.83,146.78,23.60681121]
[1641636082383,6.485,146.83,146.79,14.43959608]
[1641636083085,27.66479,146.85,146.79,14.43959608]
[1641636083286,27.66479,146.85,146.78,23.60681121]
[1641636084087,27.66479,146.85,146.78,1.62403042]
[1641636084088,27.66479,146.81,146.78,1.62403042]
[1641636086290,27.66479,146.81,146.77,60.4716]
[1641636086992,27.66479,146.81,146.74,14.43959608]
[1641636087994,27.66479,146.81,146.74,23.60129501]
[1641636091002,4.0,146.8,146.74,23.60129501]
[1641636091201,35.74979,146.81,146.75,14.43959608]
[1641636091202,39.74979,146.81,146.75,14.43959608]
[1641636091401,35.74979,146.81,146.75,14.43959608]
[1641636092202,27.66479,146.77,146.75,14.43959608]
[1641636092403,27.66479,146.77,146.72,99.11039204]
[1641636092404,27.66479,146.77,146.73,1.62284994]
[1641636094205,55.32958,146.77,146.69,53.02048812]
[1641636094406,55.32958,146.77,146.69,14.43959608]
[1641636095609,55.32958,146.77,146.7,14.43959608]
[1641636096211,4.0,146.76,146.7,14.43959608]
[1641636096413,4.0,146.75,146.7,14.43959608]
[1641636096611,4.0,146.74,146.7,9.608e-05]
[1641636096812,4.0,146.73,146.68,23.52573387]
[1641636097011,12.73,146.73,146.68,23.52573387]
[1641636097215,4.99443913,146.73,146.68,23.52573387]
[1641636097612,6.81291729,146.71,146.65,38.58089204]
[1641636097814,6.81291729,146.71,146.66,1.61424304]
[1641636098211,27.66479,146.67,146.66,1.61424304]
[1641636098412,36.17979,146.67,146.66,4.304e-05]
[1641636098612,36.17979,146.67,146.64,7.50183912]
[1641636099011,36.17979,146.67,146.63,4.0]
[1641636099212,27.66479,146.67,146.62,4.0]
[1641636099613,27.66479,146.67,146.58,6.8115251]
[1641636099614,27.66479,146.67,146.64,4.0]
[1641636099816,27.66479,146.68,146.62,4.0]
[1641636100014,27.66479,146.68,146.58,14.7585251]
[1641636100015,27.66479,146.68,146.58,6.8115251]
[1641636100217,27.66479,146.72,146.62,27.66479]
[1641636100414,27.66479,146.72,146.63,64.3602]
[1641636100614,27.66479,146.72,146.63,60.3602]
[1641636100815,27.66479,146.72,146.65,4.0]
[1641636101015,27.66479,146.72,146.63,60.3602]
[1641636101418,27.66479,146.72,146.62,27.66479]
[1641636101618,6.81291729,146.71,146.62,27.66479]
[1641636102116,27.66479,146.68,146.6,68.2557]
[1641636102517,27.66479,146.68,146.6,64.2557]
[1641636102716,27.66479,146.68,146.62,4.0]
[1641636102916,67.89951729,146.71,146.65,4.0]
[1641636103116,6.81291729,146.71,146.65,10.638]
[1641636103516,27.66479,146.72,146.65,10.638]
[1641636103716,6.81407788,146.69,146.65,6.638]
[1641636103916,20.0,146.68,146.58,4.0]
[1641636104119,27.66479,146.61,146.58,4.0]
[1641636105116,27.66479,146.63,146.56,38.58089204]
[1641636105517,27.66479,146.63,146.58,4.0]
[1641636105717,5.45289692,146.72,146.59,4.0]
[1641636105920,6.81268522,146.72,146.59,4.0]
[1641636106117,27.66479,146.72,146.66,4.0]
[1641636106317,27.66479,146.72,146.66,5.684]
[1641636107421,27.66479,146.72,146.63,9.515]
[1641636107824,34.47747522,146.72,146.63,5.515]
[1641636108221,27.66479,146.69,146.63,5.515]
[1641636108423,27.66479,146.69,146.64,4.0]
[1641636108622,20.0,146.65,146.23,90.0]
[1641636108822,2.87805155,146.55,146.5,12.66088305]
[1641636109032,20.0,146.51,146.41,60.20159179]
[1641636109223,26.82943486,146.42,146.31,139.22625495]
[1641636109423,20.0,146.38,146.31,107.64625495]
[1641636109623,20.0,146.35,146.31,100.12625495]
[1641636109824,6.458,146.35,146.31,65.78625495]
[1641636110125,27.66479,146.34,146.32,4.0]
[1641636110324,34.49515782,146.34,146.29,4.0]
[1641636110523,27.66479,146.34,146.32,4.0]
[1641636110924,27.66479,146.34,146.33,4.0]
[1641636111122,27.66479,146.34,146.28,4.0]
[1641636111326,27.66479,146.34,146.33,4.0]
[1641636111523,27.66479,146.36,146.33,4.0]
[1641636111723,27.66479,146.36,146.35,4.0]
[1641636112326,27.66479,146.39,146.35,4.0]
[1641636112527,27.66479,146.39,146.37,4.0]
[1641636112729,27.66479,146.39,146.3,4.0]
[1641636112927,27.66479,146.39,146.35,4.0]
[1641636113127,27.66479,146.39,146.34,4.0]
[1641636113327,27.66479,146.39,146.28,31.66479]
[1641636113627,27.66479,146.39,146.3,4.0]
[1641636114128,27.66479,146.35,146.3,4.0]
[1641636114327,27.66479,146.35,146.32,4.0]
[1641636114528,33.69279,146.35,146.31,4.0]
[1641636115329,33.69279,146.35,146.21,6.82850217]
[1641636115527,33.69279,146.35,146.29,4.0]
[1641636115728,33.69279,146.35,146.21,6.82850217]
[1641636115930,33.69279,146.35,146.25,4.0]
[1641636116129,27.66479,146.31,146.25,4.0]
[1641636116329,27.66479,146.31,146.3,4.0]
[1641636116729,27.66479,146.35,146.3,8.0]
[1641636117029,27.66479,146.35,146.34,4.0]
[1641636117329,27.66479,146.35,146.31,4.0]
[1641636117730,27.66479,146.35,146.25,5.707]
[1641636117931,27.66479,146.35,146.31,4.0]
[1641636118130,27.66479,146.35,146.32,4.0]
[1641636118630,27.66479,146.35,146.32,5.665]
[1641636119231,27.66479,146.35,146.32,9.665]
[1641636119831,6.8271036,146.41,146.34,4.0]
[1641636120032,6.8271036,146.41,146.39,4.0]
[1641636120233,27.66479,146.4,146.32,5.665]
[1641636120435,34.49259281,146.4,146.32,5.665]
[1641636120634,34.49259281,146.4,146.36,4.0]
[1641636121234,34.49259281,146.4,146.32,5.665]
[1641636121435,34.49259281,146.4,146.38,4.0]
[1641636121835,34.49259281,146.4,146.32,5.665]
[1641636122236,27.66479,146.36,146.32,5.665]
[1641636122939,27.66479,146.36,146.35,4.0]
[1641636123540,27.66479,146.36,146.32,5.665]
[1641636123740,27.66479,146.36,146.33,4.0]
[1641636124143,55.32958,146.36,146.32,5.665]
[1641636124342,55.32958,146.36,146.33,4.0]
[1641636125040,55.32958,146.36,146.32,9.665]
[1641636125241,55.32958,146.36,146.32,5.665]
[1641636125441,55.32958,146.36,146.32,9.665]
[1641636125641,55.32958,146.36,146.34,4.0]
[1641636126542,55.32958,146.36,146.32,5.665]
[1641636127041,55.32958,146.36,146.33,4.0]
[1641636127950,55.32958,146.36,146.32,9.665]
[1641636128148,62.15901486,146.36,146.32,9.665]
[1641636128947,62.15901486,146.36,146.32,4.0]
[1641636129547,4.0,146.35,146.24,68.5929]
[1641636129948,6.83083439,146.33,146.24,68.5929]
[1641636130147,12.44683439,146.33,146.23,4.0]
[1641636130348,27.66479,146.29,146.23,4.0]
[1641636132549,36.01579,146.29,146.21,4.0]
[1641636132749,36.01579,146.29,146.2,61.35]
[1641636133350,36.01579,146.29,146.18,125.0951]
[1641636133551,36.01579,146.29,146.18,129.0951]
[1641636133750,36.01579,146.29,146.18,125.0951]
[1641636133951,36.01579,146.29,146.22,4.0]
[1641636134251,27.66479,146.25,146.22,4.0]
[1641636134452,27.66479,146.29,146.22,4.0]
[1641636135051,27.66479,146.29,146.25,4.0]
[1641636135854,27.66479,146.29,146.24,5.425]
[1641636136453,27.66479,146.29,146.24,4.0]
[1641636136652,27.66479,146.29,146.22,4.0]
[1641636137053,27.66479,146.29,146.21,4.70906228]
[1641636137254,27.66479,146.29,146.22,4.0]
[1641636137854,27.66479,146.29,146.28,4.70906228]
[1641636138654,31.66479,146.29,146.24,14.15272743]
[1641636138855,33.53979,146.29,146.24,14.15272743]
[1641636139055,33.53979,146.29,146.21,41.78498698]
[1641636139256,33.53979,146.29,146.28,1.58560728]
[1641636139456,40.37225789,146.29,146.24,37.78498698]
[1641636140257,27.66479,146.25,146.24,37.78498698]
[1641636140459,27.66479,146.25,146.2,41.78498698]
[1641636142058,27.66479,146.25,146.2,37.78498698]
[1641636142360,34.49725789,146.29,146.2,37.78498698]
[1641636142361,27.66479,146.29,146.23,4.0]
[1641636142558,27.66479,146.29,146.23,10.015]
[1641636143159,6.83130102,146.32,146.25,4.0]
[1641636143359,6.83130102,146.32,146.26,4.0]
[1641636143558,6.82966808,146.35,146.28,4.0]
[1641636143861,6.82966808,146.35,146.27,4.0]
[1641636144058,4.0,146.35,146.26,11.445]
[1641636144258,27.66479,146.31,146.26,11.445]
[1641636144461,27.66479,146.31,146.26,7.445]
[1641636144959,27.66479,146.31,146.26,45.22998698]
[1641636146061,27.66479,146.31,146.26,49.22998698]
[1641636146465,27.66479,146.31,146.26,45.22998698]
[1641636146661,34.49632436,146.31,146.26,45.22998698]
[1641636146862,34.49632436,146.31,146.26,7.445]
[1641636147062,34.49632436,146.31,146.25,57.21019478]
[1641636147662,27.66479,146.31,146.25,49.22558846]
[1641636147863,27.66479,146.31,146.25,4.0]
[1641636148463,27.66479,146.31,146.21,39.10539148]
[1641636148865,27.66479,146.31,146.23,37.78498698]
[1641636149165,27.66479,146.31,146.23,43.16898698]
[1641636149765,27.66479,146.31,146.24,4.0]
[1641636149967,27.66479,146.31,146.23,5.384]
[1641636150365,27.66479,146.28,146.23,5.384]
[1641636151370,27.66479,146.28,146.23,43.16898698]
[1641636152369,27.66479,146.31,146.25,4.0]
[1641636152568,27.66479,146.31,146.26,4.0]
[1641636152770,27.66479,146.31,146.26,10.424]
[1641636153172,27.66479,146.31,146.26,6.424]
[1641636154074,27.66479,146.31,146.29,4.0]
[1641636154378,27.66479,146.31,146.29,7.213]
[1641636155573,27.66479,146.31,146.27,37.78498698]
[1641636156173,27.66479,146.31,146.26,37.78498698]
[1641636156774,33.55179,146.31,146.26,37.78498698]
[1641636157673,33.55179,146.31,146.25,37.78498698]
[1641636157873,25.79404659,146.31,146.25,41.78498698]
[1641636158073,19.90704659,146.31,146.25,41.78498698]
[1641636158277,19.90704659,146.31,146.27,4.0]
[1641636158474,27.66479,146.28,146.27,4.0]
[1641636158674,27.66479,146.28,146.25,48.95498698]
[1641636159075,27.66479,146.28,146.26,4.0]
[1641636159276,27.66479,146.28,146.26,41.78498698]
[1641636159676,27.66479,146.28,146.26,37.78498698]
[1641636160080,27.66479,146.28,146.26,41.78498698]
[1641636160279,27.66479,146.28,146.27,37.78498698]
[1641636161078,27.66479,146.28,146.23,37.78498698]
[1641636161278,35.88579,146.28,146.23,37.78498698]
[1641636162178,35.88579,146.28,146.21,57.21552887]
[1641636162380,27.66479,146.23,146.21,57.21552887]
[1641636162679,27.66479,146.23,146.22,4.0]
[1641636162878,27.66479,146.23,146.21,57.21552887]
[1641636163278,27.66479,146.23,146.21,37.78498698]
[1641636166080,27.66479,146.23,146.2,4.0]
[1641636166581,27.66479,146.23,146.21,4.0]
[1641636166980,27.66479,146.23,146.2,41.78498698]
[1641636167182,27.66479,146.23,146.21,4.0]
[1641636167383,27.66479,146.23,146.2,37.78498698]
[1641636167882,27.66479,146.23,146.19,57.21552887]
[1641636169485,27.66479,146.23,146.21,37.78498698]
[1641636171288,27.66479,146.23,146.2,37.78498698]
[1641636171487,35.84979,146.23,146.2,37.78498698]
[1641636172389,27.66479,146.22,146.21,14.49761279]
[1641636173592,27.66479,146.22,146.2,14.49761279]
[1641636176493,27.66479,146.22,146.19,21.93821427]
[1641636176692,4.0,146.21,146.19,21.93821427]
[1641636177195,4.0,146.21,146.19,14.49761279]
[1641636177495,4.0,146.21,146.18,54.0]
[1641636178296,27.66479,146.22,146.18,54.0]
[1641636178495,27.66479,146.19,146.18,54.0]
[1641636180096,27.66479,146.19,146.18,55.58258464]
[1641636181097,27.66479,146.19,146.18,77.51237376]
[1641636181897,27.66479,146.19,146.18,70.08019743]
[1641636182099,27.66479,146.19,146.18,55.58258464]
[1641636183101,34.81179,146.19,146.18,55.58258464]
[1641636184602,27.66479,146.19,146.18,55.58258464]
[1641636185804,27.66479,146.19,146.18,77.51632215]
[1641636186605,27.66479,146.19,146.18,55.58258464]
[1641636186806,27.66479,146.19,146.18,62.76958464]
[1641636187408,27.66479,146.19,146.18,84.70771713]
[1641636189106,27.66479,146.19,146.18,62.76958464]
[1641636189508,27.66479,146.19,146.18,55.58258464]
[1641636190208,27.66479,146.19,146.18,77.52879275]
[1641636192510,27.66479,146.19,146.18,63.03117996]
[1641636202022,10.14,146.25,146.18,73.64417996]
[1641636202224,10.14,146.25,146.18,69.64417996]
[1641636202422,4.84474108,146.26,146.18,73.64417996]
[1641636202623,4.84474108,146.26,146.18,69.64417996]
[1641636202624,27.66479,146.24,146.18,69.64417996]
[1641636202826,27.66479,146.24,146.18,73.64417996]
[1641636203025,27.66479,146.24,146.22,14.53281024]
[1641636203226,27.66479,146.24,146.22,23.18681024]
[1641636203626,32.50953108,146.27,146.22,27.18681024]
[1641636204126,32.50953108,146.27,146.25,4.0]
[1641636204325,32.50953108,146.27,146.25,10.192]
[1641636204526,27.66479,146.27,146.25,10.192]
[1641636204725,32.50953108,146.29,146.25,10.192]
[1641636205225,32.50953108,146.29,146.25,6.192]
[1641636205427,32.50953108,146.29,146.25,10.192]
[1641636205726,27.66479,146.29,146.26,1.58258464]
[1641636205927,27.66479,146.29,146.26,5.58258464]
[1641636206225,4.84474108,146.31,146.26,5.58258464]
[1641636206425,4.84474108,146.31,146.26,1.58258464]
[1641636206625,32.50953108,146.31,146.26,1.58258464]
[1641636206825,27.66479,146.31,146.27,20.11539488]
[1641636207025,27.66479,146.31,146.27,16.11539488]
[1641636207425,27.66479,146.33,146.27,16.11539488]
[1641636207627,27.66479,146.33,146.27,20.11539488]
[1641636207926,27.66479,146.33,146.27,16.11539488]
[1641636208127,27.66479,146.33,146.29,14.53281024]
[1641636208326,27.66479,146.33,146.29,20.56681024]
[1641636209526,27.66479,146.33,146.31,4.81970053]
[1641636211329,27.66479,146.33,146.3,6.40228517]
[1641636214634,27.66479,146.33,146.29,10.85370053]
[1641636215433,27.66479,146.33,146.29,6.034]
[1641636215633,27.66479,146.33,146.28,4.81970053]
[1641636216733,27.66479,146.33,146.28,6.39934791]
[1641636218134,27.66479,146.33,146.28,10.39934791]
[1641636218340,19.90769655,146.33,146.32,4.0]
[1641636218636,11.66479,146.37,146.32,11.179]
[1641636219036,11.66479,146.37,146.32,7.179]
[1641636219836,4.0,146.36,146.31,4.81970053]
[1641636220437,21.18879,146.37,146.31,4.81970053]
[1641636220636,21.18879,146.37,146.28,4.81970053]
[1641636221436,17.18879,146.37,146.28,4.81970053]
[1641636221637,4.0,146.33,146.28,4.81970053]
[1641636221838,4.0,146.32,146.28,6.39789835]
[1641636222738,27.66479,146.3,146.26,54.0]
[1641636222938,33.82979,146.3,146.26,54.0]
[1641636224442,37.82979,146.3,146.26,54.0]
[1641636224640,33.82979,146.3,146.26,54.0]
[1641636225643,37.82979,146.3,146.26,54.0]
[1641636226042,33.82979,146.3,146.26,54.0]
[1641636226443,4.0,146.29,146.26,54.0]
[1641636227244,4.0,146.28,146.26,54.0]
[1641636227644,4.0,146.28,146.2,14.53281024]
[1641636228243,4.0,146.28,146.19,105.87590024]
[1641636228643,27.66479,146.27,146.19,105.87590024]
[1641636228844,33.21679,146.27,146.19,105.87590024]
[1641636229344,33.21679,146.27,146.2,1.58016918]
[1641636229950,33.21679,146.27,146.21,4.0]
[1641636230143,27.66479,146.27,146.21,4.0]
[1641636230444,27.66479,146.27,146.2,5.58016918]
[1641636230644,27.66479,146.27,146.2,1.58016918]
[1641636231448,27.66479,146.27,146.21,1.58016918]
[1641636233050,4.0,146.24,146.21,1.58016918]
[1641636233250,11.575,146.24,146.21,1.58016918]
[1641636233450,7.575,146.24,146.21,1.58016918]
[1641636234052,7.575,146.24,146.17,1.58016918]
[1641636235053,7.575,146.24,146.16,42.19760024]
[1641636235556,14.40980282,146.24,146.16,42.19760024]
[1641636235755,14.40980282,146.24,146.17,1.58016918]
[1641636236657,42.07459282,146.24,146.17,1.58016918]
[1641636239962,46.07459282,146.24,146.17,1.58016918]
[1641636240161,42.07459282,146.24,146.17,1.58016918]
[1641636240762,42.07459282,146.24,146.15,14.53281024]
[1641636240763,42.07459282,146.24,146.16,1.58016918]
[1641636242263,42.07459282,146.24,146.15,1.58016918]
[1641636242463,52.31459282,146.24,146.15,1.58016918]
[1641636244468,56.31459282,146.24,146.15,1.58016918]
[1641636244666,52.31459282,146.24,146.15,1.58016918]
[1641636244866,27.66479,146.21,146.15,1.58016918]
[1641636245066,33.78479,146.21,146.15,1.58016918]
[1641636247068,6.12,146.21,146.15,1.58016918]
[1641636247266,56.31459282,146.24,146.15,1.58016918]
[1641636248167,49.47979,146.24,146.15,1.58016918]
[1641636248367,45.47979,146.24,146.15,1.58016918]
[1641636248767,45.47979,146.24,146.15,23.53513054]
[1641636249574,45.47979,146.24,146.16,1.58016918]
[1641636251073,45.47979,146.24,146.17,14.53281024]
[1641636251772,45.47979,146.24,146.18,14.53281024]
[1641636252572,45.47979,146.24,146.19,14.53281024]
[1641636255174,49.47979,146.24,146.19,14.53281024]
[1641636255376,4.0,146.2,146.19,14.53281024]
[1641636255573,11.754,146.2,146.19,14.53281024]
[1641636255773,7.754,146.2,146.19,14.53281024]
[1641636256975,7.754,146.2,146.16,14.53281024]
[1641636257576,4.0,146.22,146.16,14.53281024]
[1641636257976,4.0,146.21,146.16,14.53281024]
[1641636258176,10.212,146.21,146.16,14.53281024]
[1641636258776,6.212,146.21,146.16,14.53281024]
[1641636258975,27.66479,146.18,146.16,14.53281024]
[1641636259175,35.05179,146.18,146.15,1.58016918]
[1641636259575,7.387,146.18,146.15,1.58016918]
[1641636259976,7.387,146.18,146.14,14.53281024]
[1641636260977,7.387,146.18,146.12,16.11297942]
[1641636261177,7.387,146.18,146.12,23.56629134]
[1641636262079,11.387,146.18,146.12,23.56629134]
[1641636262378,7.387,146.18,146.12,23.56629134]
[1641636262781,7.387,146.18,146.12,1.58016918]
[1641636264381,27.66479,146.19,146.12,1.58016918]
[1641636264782,27.66479,146.19,146.12,23.56081427]
[1641636265589,27.66479,146.19,146.12,16.11297942]
[1641636265785,31.66479,146.19,146.12,1.58016918]
[1641636265986,27.66479,146.19,146.12,1.58016918]
[1641636266685,27.66479,146.19,146.12,23.55885086]
[1641636266886,4.0,146.17,146.12,23.55885086]
[1641636267085,9.704,146.17,146.12,23.55885086]
[1641636267487,9.704,146.17,146.12,1.58016918]
[1641636267688,9.704,146.17,146.08,154.6020664]
[1641636267889,5.704,146.17,146.08,106.73108698]
[1641636268289,4.0,146.16,146.08,106.73108698]
[1641636268589,4.0,146.15,146.08,37.78498698]
[1641636268790,4.0,146.13,146.09,7.44053689]
[1641636268990,10.537,146.13,146.09,7.44053689]
[1641636269694,6.537,146.13,146.05,84.88187795]
[1641636270795,10.537,146.13,146.05,84.88187795]
[1641636270993,6.537,146.13,146.05,84.88187795]
[1641636271395,10.537,146.13,146.05,84.88187795]
[1641636271596,6.537,146.13,146.05,84.88187795]
[1641636271794,10.537,146.13,146.05,84.88187795]
[1641636271996,10.537,146.13,146.05,72.89031387]
[1641636272200,10.537,146.13,146.05,35.10532689]
[1641636272897,10.537,146.13,146.06,7.44053689]
[1641636275498,6.537,146.13,146.06,7.44053689]
[1641636275700,62.16858971,146.15,146.07,4.0]
[1641636275900,62.16858971,146.15,146.06,7.44053689]
[1641636276098,73.21300684,146.18,146.06,11.44053689]
[1641636276499,73.21300684,146.18,146.07,4.0]
[1641636276698,77.21300684,146.18,146.07,4.0]
[1641636276898,104.87779684,146.18,146.08,27.66479]
[1641636277098,100.87779684,146.18,146.08,27.66479]
[1641636277299,94.04019,146.18,146.08,34.93879]
[1641636278100,4.0,146.16,146.09,7.44053689]
[1641636278300,4.0,146.17,146.09,7.44053689]
[1641636278503,94.04019,146.18,146.09,7.44053689]
[1641636279303,86.27377832,146.18,146.09,7.44053689]
[1641636279503,27.66479,146.18,146.09,7.44053689]
[1641636281007,31.66479,146.18,146.09,7.44053689]
[1641636282607,4.0,146.17,146.09,7.44053689]
[1641636283209,4.0,146.12,146.09,7.44053689]
[1641636284411,4.0,146.12,146.05,35.10532689]
[1641636285110,27.66479,146.11,146.05,7.44053689]
[1641636285310,4.0,146.1,146.06,7.44053689]
[1641636285511,10.531,146.1,146.06,7.44053689]
[1641636285711,6.531,146.1,146.06,7.44053689]
[1641636286411,6.531,146.1,146.02,94.84599]
[1641636286412,6.531,146.1,146.02,102.28652689]
[1641636286612,27.66479,146.11,146.02,102.28652689]
[1641636287212,27.66479,146.11,146.03,7.44053689]
[1641636288112,31.66479,146.11,146.09,4.83723845]
[1641636288714,27.66479,146.11,146.09,4.83723845]
[1641636288912,27.66479,146.11,146.1,4.83723845]
[1641636289713,27.66479,146.11,146.09,4.83723845]
[1641636290314,31.66479,146.11,146.09,4.83723845]
[1641636290515,37.31579,146.11,146.09,4.83723845]
[1641636290915,37.31579,146.11,146.1,4.83723845]
[1641636291115,33.31579,146.11,146.1,4.83723845]
[1641636291515,27.66479,146.11,146.1,4.83723845]
[1641636292915,10.34,146.12,146.1,4.83723845]
[1641636293117,4.83723845,146.15,146.1,12.49523845]
[1641636293315,4.83723845,146.15,146.1,40.16002845]
[1641636293515,15.33723845,146.15,146.1,40.16002845]
[1641636293717,4.83723845,146.15,146.1,40.16002845]
[1641636294016,4.83723845,146.15,146.12,4.83723845]
[1641636294216,6.83854202,146.16,146.12,4.83723845]
[1641636296625,4.83723845,146.15,146.11,4.83723845]
[1641636298626,4.0,146.14,146.11,4.83723845]
[1641636298827,8.83723845,146.15,146.11,4.83723845]
[1641636299427,4.0,146.14,146.11,4.83723845]
[1641636299827,4.83723845,146.15,146.11,4.83723845]
[1641636300228,4.83723845,146.15,146.1,4.83723845]
[1641636300727,4.0,146.14,146.1,4.83723845]
[1641636302128,8.83723845,146.15,146.1,4.83723845]
[1641636302529,4.0,146.14,146.1,4.83723845]
[1641636303334,4.83723845,146.13,146.08,4.83723845]
[1641636303935,8.83723845,146.14,146.09,4.83723845]
[1641636304934,4.83723845,146.14,146.09,4.83723845]
[1641636305535,8.83723845,146.14,146.09,4.83723845]
[1641636308239,4.83723845,146.14,146.09,4.83723845]
[1641636311244,4.0,146.11,146.1,4.83723845]
[1641636311443,31.66479,146.12,146.1,4.83723845]
[1641636312044,36.50202845,146.12,146.08,4.83723845]
[1641636312846,36.50202845,146.12,146.09,4.83723845]
[1641636313144,32.50202845,146.12,146.09,4.83723845]
[1641636313344,36.50202845,146.12,146.09,4.83723845]
[1641636313746,4.0,146.11,146.09,4.83723845]
[1641636314349,4.0,146.11,146.05,74.3101871]
[1641636315451,4.0,146.1,146.05,59.79557944]
[1641636315853,4.0,146.09,146.05,59.79557944]
[1641636316052,4.0,146.1,146.04,42.17939766]
[1641636316253,4.0,146.09,146.04,42.17939766]
[1641636316852,4.0,146.1,146.04,42.17939766]
[1641636317253,4.0,146.09,146.04,42.17939766]
[1641636317455,11.046,146.09,146.04,42.17939766]
[1641636317852,11.046,146.09,146.04,27.66479]
[1641636318653,7.046,146.09,146.04,27.66479]
[1641636318853,4.0,146.1,146.04,27.66479]
[1641636319455,4.0,146.1,146.04,42.17939766]
[1641636319957,4.0,146.09,146.04,42.17939766]
[1641636320455,4.0,146.09,146.04,14.51460766]
[1641636321456,4.0,146.08,146.03,21.96567452]
[1641636321657,31.66479,146.08,146.03,21.96567452]
[1641636322056,31.66479,146.08,146.02,109.50529766]
[1641636323457,31.66479,146.08,146.02,81.84050766]
[1641636323856,4.0,146.07,146.02,81.84050766]
[1641636324457,4.0,146.07,146.01,14.51460766]